Cogmind - Beta 13 @@@ ROGUE MODE // 2024.07.03 @ 13:08:34 Player: Hilbert Result: Destroyed by S-27 Virus with Autogun Performance ------------- Evolutions (5) 2500 Regions Visited (9) 1800 Robots Destroyed (13) 65 Value Destroyed (227) 227 Prototype IDs (1) 20 Alien Tech Used (0) 0 Bonus (200) 200 TOTAL SCORE: 4812 Bonus ------- Pacifist 200 Cogmind --------- Core Integrity 0/1000 Matter 300/300 Energy 99/100 System Corruption 1% Temperature Cool (0) Movement Core (50) Location -5/Extension Parts ------- > --- POWER (2) -------- (None) > --- PROPULSION (9) --- (None) > --- UTILITY (4) ------ (None) > --- WEAPON (2) ------- (None) > --- INVENTORY (5) ---- Ion Engine Improved Deuterium Engine Lance Peak State ------------ > --- POWER ------------ Heavy Deuterium Engine > --- PROPULSION ------- Airjet Airjet Airjet Airjet Airjet Gravmag System Gravmag System Cesium-ion Thruster > --- UTILITY ---------- Advanced Terrain Scanner Hacking Suite > --- WEAPON ----------- Powered Hammer > --- INVENTORY -------- Ion Engine Improved Deuterium Engine Improved Hover Unit Improved Hover Unit Gravmag System [Rating: 44] Favorites ----------- Power Heavy Deuterium Engine Engine Heavy Deuterium Engine Propulsion Airjet Treads Light Treads Leg Aluminum Leg Wheel Wheel Hover Unit Airjet Flight Unit Cesium-ion Thruster Utility Hacking Suite Device Improved Terrain Scanner Storage Small Storage Unit Hackware Hacking Suite Weapon Powered Hammer Energy Gun Medium Laser Ballistic Gun Assault Rifle Impact Weapon Powered Hammer Piercing Weapon Lance Build | -11 -10 -9 -8 -7 -6 -6 -6 -5 -5 ------- Run | Yrd Mat Mat Mat Fac Fac Low Low Fac Ext Slots Evolved 10 | . . 2 2 2 2 . . 2 . Power 1 | . . . . . . . . 1 . Propulsion 7 | . . 2 2 1 1 . . 1 . Utility 2 | . . . . 1 1 . . . . Weapon . | . . . . . . . . . . Parts Attached 32 | . . 3 2 5 10 . . 12 . Power 1 | . . . . . 1 . . . . Engine 1 | . . . . . 1 . . . . Core . | . . . . . . . . . . Reactor . | . . . . . . . . . . Propulsion 26 | . . 2 2 4 7 . . 11 . Treads 2 | . . . 1 1 . . . . . Leg . | . . . . . . . . . . Wheel 9 | . . 2 . . . . . 7 . Hover 14 | . . . 1 2 7 . . 4 . Flight 1 | . . . . 1 . . . . . Utility 3 | . . 1 . . 2 . . . . Device 2 | . . 1 . . 1 . . . . Storage . | . . . . . . . . . . Processor . | . . . . . . . . . . Hackware 1 | . . . . . 1 . . . . Protection . | . . . . . . . . . . Artifact . | . . . . . . . . . . Weapon 2 | . . . . 1 . . . 1 . Energy Gun . | . . . . . . . . . . Energy Cannon . | . . . . . . . . . . Ballistic Gun . | . . . . . . . . . . Ballistic Cannon . | . . . . . . . . . . Launcher . | . . . . . . . . . . Special Weapon . | . . . . . . . . . . Impact Weapon 1 | . . . . 1 . . . . . Slashing Weapon . | . . . . . . . . . . Piercing Weapon 1 | . . . . . . . . 1 . Special Melee Weapon . | . . . . . . . . . . Unidentified Prototypes 1 | . . . . . 1 . . . . Parts Lost 23 | . . . . 5 . 9 . 9 . Power . | . . . . . . . . . . Propulsion 19 | . . . . 3 . 8 . 8 . Utility 2 | . . . . 1 . 1 . . . Weapon 2 | . . . . 1 . . . 1 . Highest Loss Streak 9 | . . . . 2 . 9 . 5 . To Critical Strikes . | . . . . . . . . . . Average Slot Usage (%) 47 | . 42 57 69 63 69 45 13 21 . Engine 1 | . . . . . 5 3 . . . Treads 2 | . . . 7 6 . . . . . Leg 7 | . 28 22 18 15 . . . . . Wheel 4 | . . 22 18 2 . . . 4 . Hover 15 | . . . 7 21 44 21 . 6 . Flight 2 | . . . . 5 6 3 . . . Device 2 | . . 2 9 4 3 3 . . . Hackware 2 | . . . . . . 6 6 4 . Ballistic Gun 3 | . 14 11 9 4 . . . . . Impact Weapon 2 | . . . . 1 6 6 6 1 . Naked Turns 58 | . . . . . . . . 3 55 Heaviest Build 15 | 14 2 3 3 3 15 15 3 3 . Greatest Support 58 | 20 3 3 3 3 58 58 3 3 3 Greatest Overweight (x) 4 | . . . . . . 4 . . . Average Overweight (x) . | . . . . . . . . . . Largest Inventory Capacity 8 | 8 5 5 5 5 5 5 5 5 5 Average Capacity 5 | 7 5 5 5 5 5 5 5 5 5 Most Carried 6 | 6 5 5 5 5 5 5 5 5 3 Average Carried 4 | 5 5 3 3 3 4 5 5 3 3 Final Capacity 5 | 5 5 5 5 5 5 5 5 5 5 Final Carried 5 | 5 5 5 4 5 5 5 5 3 3 Class Distribution -------------------- 100% | Mutant Dominant Class ---------------- Mutant | -10/Materials Mutant | -9/Materials Mutant | -8/Materials Mutant | -7/Factory Mutant | -6/Factory Mutant | -6/Lower Caves Mutant | -6/Lower Caves Mutant | -5/Factory Mutant | -5/Extension Resources | -11 -10 -9 -8 -7 -6 -6 -6 -5 -5 ----------- Run | Yrd Mat Mat Mat Fac Fac Low Low Fac Ext Matter Collected 535 | 200 . 44 20 64 116 . . 91 . Remotely . | . . . . . . . . . . Salvage Created 642 | . . 90 20 64 . . . 468 . Parts 44 | . . 6 5 2 . . . 31 . Haulers Intercepted 1 | . . . . . . . . 1 . Recyclers Shooed . | . . . . . . . . . . Parts Field Recycled . | . . . . . . . . . . Retrieved Matter . | . . . . . . . . . . Parts Self-Destructed . | . . . . . . . . . . Prevented 3 | . . . . . . 3 . . . Kills | -11 -10 -9 -8 -7 -6 -6 -6 -5 -5 ------- Run | Yrd Mat Mat Mat Fac Fac Low Low Fac Ext Combat Hostiles Destroyed 3 | . . 2 . 1 . . . . . Guns 3 | . . 2 . 1 . . . . . Classes Destroyed 9 | . . 2 1 2 . . . 4 . Worker 1 | . . . . . . . . 1 . Builder 4 | . . . . 1 . . . 3 . Tunneler 1 | . . . . . . . . 1 . Hauler 1 | . . . . . . . . 1 . Recycler 2 | . . . . . . . . 2 . Watcher 1 | . . . 1 . . . . . . Grunt 1 | . . 1 . . . . . . . Sentry 1 | . . 1 . . . . . . . Programmer 1 | . . . . 1 . . . . . Best Kill Streak 8 | . . 2 1 1 . . . 8 . Combat Bots Only 2 | . . 2 . 1 . . . . . Max Kills in Single Turn 1 | . . 1 1 1 . . . 1 . Gunslinging . | . . . . . . . . . . Exploded . | . . . . . . . . . . Melee . | . . . . . . . . . . Uniques/NPCs Destroyed . | . . . . . . . . . . Combat | -11 -10 -9 -8 -7 -6 -6 -6 -5 -5 -------- Run | Yrd Mat Mat Mat Fac Fac Low Low Fac Ext Hostile Shots Fired 297 | . . 34 . 45 5 84 . 58 71 Missed 124 | . . 13 . 20 3 33 . 23 32 Damage Taken 3014 | . . 276 . 402 38 874 . 787 637 Core 1437 | . . 59 . 51 . 327 . 363 637 Absorbed by Shields 9 | . . . . 9 . . . . . Core Remaining (%) 89 | 100 100 85 100 92 . . 61 . . Volleys Fired 34 | . . 8 6 20 . . . . . Largest 1 | . . 1 1 1 . . . . . Hottest 20 | . . 20 20 20 . . . . . Shots Fired 34 | . . 8 6 20 . . . . . Gun 34 | . . 8 6 20 . . . . . Cannon . | . . . . . . . . . . Launcher . | . . . . . . . . . . Special . | . . . . . . . . . . Kinetic 34 | . . 8 6 20 . . . . . Thermal . | . . . . . . . . . . Explosive . | . . . . . . . . . . Electromagnetic . | . . . . . . . . . . Robot Hit Streak 10 | . . 5 2 10 . . . . . Robot Miss Streak 2 | . . 1 1 2 . . . . . Penetration Max . | . . . . . . . . . . Secondary Targets . | . . . . . . . . . . Shots Hit Robots 40 | . . 7 4 17 . . . 12 . Core Hits 20 | . . 4 2 5 . . . 8 1 Critical Kills . | . . . . . . . . . . Critical Parts Destroyed 2 | . . . . 2 . . . . . Critical Strikes 3 | . . . . 2 . . . 1 . Destroy 2 | . . . . 2 . . . . . Impale 1 | . . . . . . . . 1 . Melee Attacks 22 | . . . . 4 1 1 . 16 . Impact 7 | . . . . 4 1 1 . 1 . Slashing . | . . . . . . . . . . Piercing 15 | . . . . . . . . 15 . Sneak Attacks 9 | . . . . 1 . . . 8 . Combat Hostiles . | . . . . . . . . . . Follow-up Attacks . | . . . . . . . . . . Damage Inflicted 1309 | . . 102 52 371 . . . 743 41 Guns 363 | . . 82 52 229 . . . . . Cannons . | . . . . . . . . . . Explosions . | . . . . . . . . . . Melee 847 | . . . . 113 . . . 734 . Ramming 99 | . . 20 . 29 . . . 9 41 Kinetic 363 | . . 82 52 229 . . . . . Thermal . | . . . . . . . . . . Explosive . | . . . . . . . . . . Electromagnetic . | . . . . . . . . . . Impact 113 | . . . . 113 . . . . . Slashing . | . . . . . . . . . . Piercing 734 | . . . . . . . . 734 . Highest Corruption 7 | . . . . 7 . . . 1 1 Average Corruption 2 | . . . . 4 . . . 1 1 Corruption Purged . | . . . . . . . . . . Corruption Blocked . | . . . . . . . . . . Effects 10 | . . . . 8 . . . 2 . Message Errors 4 | . . . . 4 . . . . . Matter Fused 2 | . . . . 1 . . . 1 . Heat Flow Errors 1 | . . . . 1 . . . . . Parts Rejected 1 | . . . . 1 . . . . . Data Loss (minor) 2 | . . . . 1 . . . 1 . Overload Shots . | . . . . . . . . . . Overflow Damage 195 | . . . . 83 . . . 112 . Projectiles . | . . . . . . . . . . Explosions . | . . . . . . . . . . Melee 195 | . . . . 83 . . . 112 . Knockbacks 3 | . . 2 . 1 . . . . . Impact 3 | . . 2 . 1 . . . . . Kinetic . | . . . . . . . . . . Secondary . | . . . . . . . . . . Self-Inflicted Damage 45 | . . 9 . 13 . . . 4 19 Shots . | . . . . . . . . . . Rammed 21 | . . 6 . 5 . . . 1 9 Targets Rammed 21 | . . 6 . 5 . . . 1 9 Kicked . | . . . . . . . . . . Crushed . | . . . . . . . . . . Highest Temperature 78 | . . . . 78 . 55 . . . Average Temperature 25 | . . . . 44 . 23 . . . Received Heat Transfer 633 | . . 120 . 60 9 210 . 216 18 Siege Activations . | . . . . . . . . . . Robots Corrupted . | . . . . . . . . . . Combat Hostiles . | . . . . . . . . . . Parts Fried 3 | . . . . 3 . . . . . Impact Corruptions 4 | . . . . 4 . . . . . Robots Melted . | . . . . . . . . . . Combat Hostiles . | . . . . . . . . . . Parts Melted . | . . . . . . . . . . Heat Transferred . | . . . . . . . . . . Parts Sabotaged . | . . . . . . . . . . Parts Stolen . | . . . . . . . . . . Parts Stripped . | . . . . . . . . . . Power Chain Reactions . | . . . . . . . . . . Alert | -11 -10 -9 -8 -7 -6 -6 -6 -5 -5 ------- Run | Yrd Mat Mat Mat Fac Fac Low Low Fac Ext Peak Influence 309 | . 15 70 81 144 126 . . 309 226 Initial 151 | . . 5 29 36 65 . . 100 151 Average 104 | . 2 50 52 79 81 . . 184 173 Maximum Alert Level 1 | . . . . . . . . 1 1 Low Security (%) 90 | 100 100 100 100 100 100 . . 68 81 Level 1 9 | . . . . . . . . 31 18 Level 2 . | . . . . . . . . . . Level 3 . | . . . . . . . . . . Level 4 . | . . . . . . . . . . Level 5 . | . . . . . . . . . . High Security . | . . . . . . . . . . Max Security . | . . . . . . . . . . Squads Dispatched 7 | . 1 1 1 1 . . . 3 . Investigation 3 | . . 1 . . . . . 2 . Extermination . | . . . . . . . . . . Reinforcement 4 | . 1 . 1 1 . . . 1 . Assault . | . . . . . . . . . . Garrison . | . . . . . . . . . . Intercept . | . . . . . . . . . . Searches Triggered . | . . . . . . . . . . Construction Impeded . | . . . . . . . . . . Haulers Reinforced . | . . . . . . . . . . Active Scanning Responses . | . . . . . . . . . . Cargo Convoy Interrupts . | . . . . . . . . . . Stealth | -11 -10 -9 -8 -7 -6 -6 -6 -5 -5 --------- Run | Yrd Mat Mat Mat Fac Fac Low Low Fac Ext Distress Signals 4 | . 1 . . . . . . 3 . Communications Jammed . | . . . . . . . . . . Distress Signals . | . . . . . . . . . . Times Spotted 78 | . 1 8 4 10 6 13 . 23 13 Peak Tracking Total 14 | . 1 6 2 5 5 10 . 14 12 Tactical Retreats 14 | . . . . 2 1 4 . 6 1 Traps | -11 -10 -9 -8 -7 -6 -6 -6 -5 -5 ------- Run | Yrd Mat Mat Mat Fac Fac Low Low Fac Ext Traps Triggered 4 | . . 1 . 2 . . . 1 . Indirectly . | . . . . . . . . . . Trap Hack Attempts . | . . . . . . . . . . Triggered . | . . . . . . . . . . Disarmed . | . . . . . . . . . . Reprogrammed . | . . . . . . . . . . Reused . | . . . . . . . . . . Traps Extracted . | . . . . . . . . . . Installed . | . . . . . . . . . . Triggered 2 | . . . . . . 1 1 . . Machines | -11 -10 -9 -8 -7 -6 -6 -6 -5 -5 ---------- Run | Yrd Mat Mat Mat Fac Fac Low Low Fac Ext Machines Disabled . | . . . . . . . . . . Max in Single Turn . | . . . . . . . . . . Machines Repaired . | . . . . . . . . . . Machines Dismantled . | . . . . . . . . . . Machines Sabotaged . | . . . . . . . . . . Overloaded Fab Kills . | . . . . . . . . . . Hacking | -11 -10 -9 -8 -7 -6 -6 -6 -5 -5 --------- Run | Yrd Mat Mat Mat Fac Fac Low Low Fac Ext Machines Accessed 6 | . . . . 2 1 . . 3 . Terminals 6 | . . . . 2 1 . . 3 . Fabricators . | . . . . . . . . . . Repair Stations . | . . . . . . . . . . Recycling Units . | . . . . . . . . . . Scanalyzers . | . . . . . . . . . . Garrison Access . | . . . . . . . . . . Total Hacks 12 | . . . . 2 1 . . 9 . Successful 3 | . . . . 1 . . . 2 . Failed 9 | . . . . 1 1 . . 7 . Catastrophic 2 | . . . . 1 . . . 1 . Database Lockouts . | . . . . . . . . . . Manual 8 | . . . . 1 1 . . 6 . Terminals 12 | . . . . 2 1 . . 9 . Fabricators . | . . . . . . . . . . Repair Stations . | . . . . . . . . . . Recycling Units . | . . . . . . . . . . Scanalyzers . | . . . . . . . . . . Garrison Access . | . . . . . . . . . . Terminal Hacks 3 | . . . . 1 . . . 2 . Record 1 | . . . . . . . . 1 . Open Door 1 | . . . . . . . . 1 . Open DSF 1 | . . . . 1 . . . . . Fabricator Hacks . | . . . . . . . . . . Repair Station Hacks . | . . . . . . . . . . Recycling Unit Hacks . | . . . . . . . . . . Scanalyzer . | . . . . . . . . . . Garrison Access Hacks . | . . . . . . . . . . Unauthorized Hacks . | . . . . . . . . . . Terminals . | . . . . . . . . . . Fabricators . | . . . . . . . . . . Repair Stations . | . . . . . . . . . . Recycling Units . | . . . . . . . . . . Scanalyzers . | . . . . . . . . . . Garrison Access . | . . . . . . . . . . Data Cores Recovered . | . . . . . . . . . . Used . | . . . . . . . . . . Hacking Detections 4 | . . . . 1 1 . . 2 . Full Trace Events 2 | . . . . . . . . 2 . Feedback Events . | . . . . . . . . . . Feedback Blocked . | . . . . . . . . . . Robot Schematics Acquired . | . . . . . . . . . . Robots Built . | . . . . . . . . . . Authchips . | . . . . . . . . . . Time . | . . . . . . . . . . Total Robot Build Rating . | . . . . . . . . . . Part Schematics Acquired . | . . . . . . . . . . Parts Built . | . . . . . . . . . . Authchips . | . . . . . . . . . . Time . | . . . . . . . . . . Total Part Build Rating . | . . . . . . . . . . Parts Repaired . | . . . . . . . . . . Time . | . . . . . . . . . . Parts Recycled . | . . . . . . . . . . Recycled Matter . | . . . . . . . . . . Retrieved Matter . | . . . . . . . . . . Retrieved Components . | . . . . . . . . . . Parts Scanalyzed . | . . . . . . . . . . Part Schematics Acquired . | . . . . . . . . . . Parts Damaged . | . . . . . . . . . . Bothacking | -11 -10 -9 -8 -7 -6 -6 -6 -5 -5 ------------ Run | Yrd Mat Mat Mat Fac Fac Low Low Fac Ext Used RIF Installer . | . . . . . . . . . . Robots Hacked . | . . . . . . . . . . Non-combat . | . . . . . . . . . . Combat . | . . . . . . . . . . Robot Hacks Applied . | . . . . . . . . . . Relay Couplers Released . | . . . . . . . . . . Fabnet Peak Effective % . | . . . . . . . . . . Robots Rewired . | . . . . . . . . . . Allies Hacked . | . . . . . . . . . . Hacks Repelled . | . . . . . . . . . . Allies | -11 -10 -9 -8 -7 -6 -6 -6 -5 -5 -------- Run | Yrd Mat Mat Mat Fac Fac Low Low Fac Ext Total Allies . | . . . . . . . . . . Largest Group . | . . . . . . . . . . Highest-Rated Group . | . . . . . . . . . . Highest-Rated Ally . | . . . . . . . . . . Total Orders . | . . . . . . . . . . Ally Attacks . | . . . . . . . . . . Total Damage . | . . . . . . . . . . Kills . | . . . . . . . . . . Allies Corrupted . | . . . . . . . . . . Allies Melted . | . . . . . . . . . . Intel | -11 -10 -9 -8 -7 -6 -6 -6 -5 -5 ------- Run | Yrd Mat Mat Mat Fac Fac Low Low Fac Ext Robot Analysis Total . | . . . . . . . . . . Derelict Logs Recovered 1 | . . . . . . 1 . . . Drone Launches . | . . . . . . . . . . Drone Recoveries . | . . . . . . . . . . Exploration | -11 -10 -9 -8 -7 -6 -6 -6 -5 -5 ------------- Run | Yrd Mat Mat Mat Fac Fac Low Low Fac Ext Turns Passed 1155 | 4 38 125 71 249 150 174 26 263 55 Spaces Moved 1986 | 3 73 194 111 332 342 382 52 406 91 Core 1427 | 1 73 194 111 332 5 162 52 406 91 Treads . | . . . . . . . . . . Legs 2 | 2 . . . . . . . . . Wheels . | . . . . . . . . . . Hover 557 | . . . . . 337 220 . . . Flight . | . . . . . . . . . . Fastest Speed 36 | 50 50 50 50 50 36 36 50 50 50 Average Speed 46 | 96 50 50 50 50 37 44 50 50 50 Slowest Speed 250 | 120 50 50 50 50 74 250 50 50 50 Overloaded Moves . | . . . . . . . . . . Propulsion Burnouts . | . . . . . . . . . . Robots Hopped . | . . . . . . . . . . Cave-ins Triggered . | . . . . . . . . . . Exploration Rate (%) 20 | 2 21 22 17 15 14 59 13 20 18 Regions Visited 9 Branch Regions 3 Pre-discovered Areas . | . . . . . . . . . . Known Exits Taken . | . . . . . . . . . . Unknown Exits Taken 9 | 1 1 1 1 1 1 1 1 1 . Scrap Searched 3 | . . . . . . 3 . . . Spaces Dug 6 | . . . . 3 1 1 . 1 . Terrain Destroyed 6 | . . . . 3 1 1 . 1 . Melee 6 | . . . . 3 1 1 . 1 . Projectile . | . . . . . . . . . . AOE . | . . . . . . . . . . Terrain Rammed . | . . . . . . . . . . Walls Destroyed . | . . . . . . . . . . Machines Disabled . | . . . . . . . . . . Actions | -11 -10 -9 -8 -7 -6 -6 -6 -5 -5 --------- Run | Yrd Mat Mat Mat Fac Fac Low Low Fac Ext Total 2124 | 5 74 212 119 385 360 383 51 435 100 Wait 5 | . . . . 4 1 . . . . Move 1977 | 2 72 193 110 331 341 381 51 405 91 Hop . | . . . . . . . . . . Pick Up 9 | . 1 2 1 2 2 . . 1 . Fast Attach 19 | . . 1 . 4 5 . . 9 . Attach 10 | . . 2 2 1 2 . . 3 . Detach 1 | 1 . . . . . . . . . Swap 3 | . . . . . 3 . . . . Drop 9 | 2 1 . . . 5 1 . . . Fire 34 | . . 8 6 20 . . . . . Melee 22 | . . . . 4 1 1 . 16 . Ram 21 | . . 6 . 5 . . . 1 9 Kick . | . . . . . . . . . . Crush . | . . . . . . . . . . Escape Stasis 14 | . . . . 14 . . . . . Rewire . | . . . . . . . . . . Trap . | . . . . . . . . . . Miscellaneous . | . . . . . . . . . . Route ------- -11/Scrapyard -10/Materials -9/Materials (discovered 2 exits: [*Mat] / [*Min]) -8/Materials -7/Factory -6/Factory -6/Lower Caves -6/Lower Caves -5/Factory -5/Extension History --------- Turn | Location | Event 1 | -11/Scrapyard | Discovered new exit (range 3) 5 | -11/Scrapyard | Entered Materials 36 | -10/Materials | Discovered new exit (range 15) 43 | -10/Materials | Entered another Materials area 43 | -9/Materials | Evolved 2 slots: Propulsion x2 56 | -9/Materials | Discovered new exit (range 16) 165 | -9/Materials | Discovered new exit (range 5) 168 | -9/Materials | Entered another Materials area 168 | -8/Materials | Evolved 2 slots: Propulsion x2 237 | -8/Materials | Discovered new exit (range 4) 239 | -8/Materials | Entered Factory 239 | -7/Factory | Evolved 2 slots: Propulsion x1, Utility x1 325 | -7/Factory | Build established: Mutant 484 | -7/Factory | Discovered new exit (range 5) 488 | -7/Factory | Entered another Factory area 488 | -6/Factory | Evolved 2 slots: Propulsion x1, Utility x1 628 | -6/Factory | Discovered new exit (range 14) 638 | -6/Factory | Entered Lower Caves 669 | -6/Lower Caves | Spotted B-75 Beast 733 | -6/Lower Caves | Learned Factory emergency access door positions 762 | -6/Lower Caves | Lost 9 parts (8n1u) 801 | -6/Lower Caves | Encountered a Warlord checkpoint 810 | -6/Lower Caves | Discovered new exit (range 5) 812 | -6/Lower Caves | Entered another Lower Caves area 835 | -6/Lower Caves | Discovered new exit (range 6) 838 | -6/Lower Caves | Entered Factory 838 | -5/Factory | Evolved 2 slots: Power x1, Propulsion x1 1042 | -5/Factory | Lost 3 parts (3n) 1097 | -5/Factory | Discovered new exit (range 10) 1101 | -5/Factory | Entered Extension 1115 | -5/Extension | Lost 5 parts (5n) 1130 | -5/Extension | Core integrity fell below 50% 1151 | -5/Extension | Core integrity fell below 20% 1156 | -5/Extension | Destroyed by S-27 Virus with Autogun Last Messages --------------- 01079_ Gravmag System destroyed. 01080_ Wheel severed. 01080_ Wheel destroyed. 01083_ Lance severed. 01084_ Com. Wheel destroyed. 01094_ Wheel severed. 01095_ Antigrav System severed. 01097_ Connecting with Door Terminal... >>Open(Door) Sealed Blast Doors opened. 01097_ EXIT=FOUND 01098_ Hacking Suite severed. LOCATION=UNKNOWN GOAL=ESCAPE 01107_ K-01 Serf exits Transfer Station. 01107_ U-05 Engineer exits Transfer Station. 01126_ Slammed into S-27 Virus. 01131_ Destabilizing: Core damaged (-10). 01132_ Slammed into S-27 Virus. 01155_ Penetrated by Slug. Map ----- +----------------------------------------------------+ | | | | | | | | | | | | | | | | | | | | | | | | | | | | | | | | | ?????????????????????????????????????????????????? | | ?????????????????????????????????????????????????? | | #############????????????????????????????????????? | | ?????????????????????????????????????? | | ########??????????????????????????????? | | ss #???#######????????????????????? | | " s ##### #????????????????????? | | "" "" R ###### #?????????????? | | "" "T s s Y #?????????????? | | "" s s s @ ##???????????????????? | | "" u ##### #????????????????????? | | "" ###### #???#######????????????????????? | | "" #????#### ####??????????????????????????????? | | " #??????#T #?????????????????????????????????? | | #??????##"#?????????????????????????????????? | | #???????????????????????????????????????????? | | #???????????????????????????????????????????? | | ######???????????????????????????????????????????? | | #????????????????????????????????????????????????? | | ?????????????????????????????????????????????????? | | ?????????????????????????????????????????????????? | | ?????????????????????????????????????????????????? | | ?????????????????????????????????????????????????? | | ?????????????????????????????????????????????????? | | ?????????????????????????????????????????????????? | | ?????????????????????????????????????????????????? | | ?????????????????????????????????????????????????? | | ?????????????????????????????????????????????????? | | ?????????????????????????????????????????????????? | | ?????????????????????????????????????????????????? | | ?????????????????????????????????????????????????? | | ?????????????????????????????????????????????????? | | ?????????????????????????????????????????????????? | | ?????????????????????????????????????????????????? | +----------------------------------------------------+ Best States ------------- Heat Dissipation 40 Energy Generation 18 Energy Capacity 310 Matter Stores 300 Matter Capacity 300 Sight Range 16 Terrain Scan Range 20 Terrain Scan Density 10 Evasion (%) 57 Offensive Hacking 10 Item Schematics ----------------- None Robot Schematics ------------------ None Fabricated ------------ Nothing Alien Tech Used ----------------- None Achievements -------------- None Challenges ------------ None Game ------ Seed NeutrinoBattleDoomcannon Manual? 0 Play Time 00:24:22 Cumulative 50.1 hours Start 2024.07.03 @ 12:43:43 End 2024.07.03 @ 13:08:34 Sessions 1 Manual Loads 0 Difficulty Rogue Special Mode None Game No. 101 Rogue 101 Adventurer 0 Explorer 0 Win Type - Total 2 Types 2/0/0/0/0/0/0/0/0 Lore% 40 Gallery% 40 Achievement% 33 Wizard Run 0 Options --------- Layout 1 ASCII 1 Keyboard 1 Movement Vi Keybinds 1 Fullscreen 1 Font 24/Smallcaps Map View 50x35 Zoom Use 0% Tactical HUD 1 Map Filters NONE Filters NONE Steam 1 RUN: 71fd5487-dc6d-4862-b0d2-d31e05b9a1aa